fUST/lending_fUST_20250809
["ID","MTS","AMOUNT","RATE_DAILY","PERIOD"]
[378141297,1754745053496,-460.0,0.00022739,2]
[378141298,1754745053505,-460.0,0.00022739,2]
[378141299,1754745053514,-151.0,0.00022739,7]
[378141300,1754745053524,-460.0,0.00022739,2]
[378141301,1754745053533,-467.37402477,0.00022739,2]
[378141302,1754745053544,-460.0,0.00022739,2]
[378141303,1754745053554,-460.0,0.00022739,2]
[378141304,1754745053565,-322.8758519,0.00022739,2]
[378141305,1754745053574,-460.0,0.00022739,2]
[378141306,1754745053681,-408.17107325,0.00022739,2]
[378141307,1754745053691,-460.0,0.00022739,2]
[378141308,1754745053701,-460.0,0.00022739,2]
[378141309,1754745053711,-460.0,0.00022739,2]
[378141310,1754745053722,-485.95692302,0.00022739,2]
[378141311,1754745053732,-460.0,0.00022739,2]
[378141312,1754745053742,-460.0,0.00022739,2]
[378141313,1754745053752,-460.0,0.00022739,2]
[378141314,1754745053761,-462.95960453,0.00022739,2]
[378141315,1754745053771,-273.91261486,0.00022739,2]
[378141316,1754745053781,-460.0,0.00022739,2]
[378141317,1754745053794,-460.0,0.00022739,2]
[378141318,1754745053804,-151.0,0.00022739,7]
[378141319,1754745053814,-460.0,0.00022739,2]
[378141320,1754745053824,-460.0,0.00022739,2]
[378141321,1754745053835,-513.74,0.00022739,2]
[378141322,1754745053844,-460.0,0.00022739,2]
[378141323,1754745053854,-460.0,0.00022739,2]
[378141324,1754745053863,-460.0,0.00022739,2]
[378141325,1754745053874,-460.0,0.00022739,2]
[378141326,1754745053884,-460.0,0.00022739,2]
[378141327,1754745053893,-460.0,0.00022739,2]
[378141328,1754745053903,-460.0,0.00022739,2]
[378141329,1754745053913,-460.0,0.00022739,2]
[378141330,1754745053922,-460.0,0.00022739,2]
[378141331,1754745053931,-460.0,0.00022739,2]
[378141332,1754745053941,-460.0,0.00022739,2]
[378141333,1754745053951,-460.0,0.00022739,2]
[378141334,1754745053961,-460.0,0.00022739,2]
[378141335,1754745053971,-460.0,0.00022739,2]
[378141336,1754745053980,-461.81355885,0.00022739,2]
[378141337,1754745053990,-278.49746423,0.00022739,2]
[378141338,1754745054000,-460.0,0.00022739,2]
[378141339,1754745054009,-460.0,0.00022739,2]
[378141340,1754745054019,-319.52906246,0.00022739,2]
[378141341,1754745054028,-460.0,0.00022739,2]
[378141342,1754745054038,-500.0,0.00022739,2]
[378141343,1754745054050,-203.45292445,0.00022739,2]
[378141344,1754745054059,-460.0,0.00022739,2]
[378141345,1754745054069,-233.148542,0.00022739,7]
[378141346,1754745054079,-460.0,0.00022739,2]
[378141347,1754745054089,-460.0,0.00022739,2]
[378141348,1754745054098,-233.148542,0.00022739,7]
[378141349,1754745054108,-460.0,0.00022739,2]
[378141350,1754745054117,-460.0,0.00022739,2]
[378141351,1754745054127,-462.17345086,0.00022739,2]
[378141352,1754745054136,-460.0,0.00022739,2]
[378141353,1754745054146,-237.50221522,0.00022739,2]
[378141354,1754745054156,-460.0,0.00022739,2]
[378141355,1754745054166,-460.0,0.00022739,2]
[378141356,1754745054175,-257.56009714,0.00022739,2]
[378141357,1754745054185,-460.0,0.00022739,2]
[378141358,1754745054195,-460.0,0.00022739,2]
[378141359,1754745054205,-460.0,0.00022739,2]
[378141360,1754745054215,-460.0,0.00022739,2]
[378141361,1754745054224,-460.0,0.00022739,2]
[378141362,1754745054234,-638.04,0.00022739,2]
[378141363,1754745054244,-466.33812446,0.00022739,2]
[378141364,1754745054253,-460.0,0.00022739,2]
[378141365,1754745054263,-460.0,0.00022739,2]
[378141366,1754745054273,-460.0,0.00022739,2]
[378141367,1754745054282,-460.0,0.00022739,2]
[378141368,1754745054294,-460.0,0.00022739,2]
[378141369,1754745054303,-460.0,0.00022739,2]
[378141370,1754745054312,-460.0,0.00022739,2]
[378141371,1754745054322,-460.0,0.00022739,2]
[378141372,1754745054332,-460.0,0.00022739,2]
[378141373,1754745054341,-460.0,0.00022739,2]
[378141374,1754745054351,-212.69322998,0.00022739,2]
[378141375,1754745054361,-460.0,0.00022739,2]
[378141376,1754745054371,-460.0,0.00022739,2]
[378141377,1754745054380,-460.0,0.00022739,2]
[378141378,1754745054390,-460.0,0.00022739,2]
[378141379,1754745054401,-460.0,0.00022739,2]
[378141380,1754745054410,-460.0,0.00022739,2]
[378141381,1754745054420,-460.0,0.00022739,2]
[378141382,1754745054429,-808.51,0.00022739,2]
[378141383,1754745054439,-151.0,0.00022739,7]
[378141384,1754745054450,-460.0,0.00022739,2]
[378141385,1754745054459,-477.21,0.00022739,2]
[378141386,1754745054468,-151.0,0.00022739,7]
[378141387,1754745054478,-460.0,0.00022739,2]
[378141388,1754745054488,-460.0,0.00022739,2]
[378141389,1754745054497,-460.0,0.00022739,2]
[378141390,1754745054507,-463.63691803,0.00022739,2]
[378141391,1754745054517,-462.4673501,0.00022739,2]
[378141392,1754745054527,-460.0,0.00022739,2]
[378141393,1754745054536,-467.3844476,0.00022739,2]
[378141394,1754745054548,-1681.48,0.00022739,2]
[378141395,1754745054558,-460.0,0.00022739,2]
[378141396,1754745054567,-460.0,0.00022739,2]
[378141397,1754745054577,-1027.3,0.00022739,2]
[378141398,1754745054587,-460.0,0.00022739,2]
[378141399,1754745054596,-795.13,0.00022739,2]
[378141400,1754745054605,-460.0,0.00022739,2]
[378141401,1754745054615,-460.0,0.00022739,2]
[378141402,1754745054625,-490.91,0.00022739,2]
[378141403,1754745054635,-460.0,0.00022739,2]
[378141404,1754745054644,-638.22,0.00022739,2]
[378141405,1754745054654,-460.0,0.00022739,2]
[378141406,1754745054663,-460.0,0.00022739,2]
[378141407,1754745054673,-875.01,0.00022739,2]
[378141408,1754745054683,-473.74594522,0.00022739,2]
[378141409,1754745054692,-460.0,0.00022739,2]
[378141410,1754745054702,-460.0,0.00022739,2]
[378141411,1754745054712,-460.0,0.00022739,2]
[378141412,1754745054722,-460.0,0.00022739,2]
[378141413,1754745054732,-460.0,0.00022739,2]
[378141414,1754745054742,-460.0,0.00022739,2]
[378141415,1754745054751,-460.0,0.00022739,2]
[378141416,1754745054761,-460.0,0.00022739,2]
[378141417,1754745054770,-460.0,0.00022739,2]
[378141418,1754745054782,-460.0,0.00022739,2]
[378141419,1754745054791,-460.0,0.00022739,2]
[378141420,1754745054803,-460.0,0.00022739,2]
[378141421,1754745054813,-460.0,0.00022739,2]
[378141422,1754745054823,-728.0,0.00022739,2]
[378141423,1754745054833,-460.0,0.00022739,2]
[378141424,1754745054843,-460.0,0.00022739,2]
[378141425,1754745054852,-460.0,0.00022739,2]
[378141426,1754745054862,-480.91,0.00022739,2]
[378141427,1754745054872,-1302.92,0.00022739,2]
[378141428,1754745054882,-1545.8,0.00022739,2]
[378141429,1754745054892,-460.0,0.00022739,2]
[378141430,1754745054902,-460.0,0.00022739,2]
[378141431,1754745054912,-460.0,0.00022739,2]
[378141432,1754745054922,-460.0,0.00022739,2]
[378141433,1754745054932,-460.0,0.00022739,2]
[378141434,1754745054942,-495.1,0.00022739,2]
[378141435,1754745054951,-460.0,0.00022739,2]
[378141436,1754745054960,-525.63,0.00022739,2]
[378141437,1754745054970,-526.31,0.00022739,2]
[378141438,1754745054980,-460.0,0.00022739,2]
[378141439,1754745054989,-460.0,0.00022739,2]
[378141440,1754745055000,-464.79285501,0.00022739,2]
[378141441,1754745055010,-1355.34,0.00022739,2]
[378141442,1754745055019,-460.0,0.00022739,2]
[378141443,1754745055029,-460.0,0.00022739,2]
[378141444,1754745055038,-923.81,0.00022739,2]
[378141445,1754745055051,-465.2941641,0.00022739,2]
[378141446,1754745055061,-4472.04,0.00022739,2]
[378141447,1754745055071,-2093.72,0.00022739,2]
[378141448,1754745055080,-460.0,0.00022739,2]
[378141449,1754745055090,-474.78117092,0.00022739,2]
[378141450,1754745055100,-460.0,0.00022739,2]
[378141451,1754745055110,-460.0,0.00022739,2]
[378141452,1754745055120,-460.0,0.00022739,2]
[378141453,1754745055129,-462.12,0.00022739,2]
[378141454,1754745055140,-460.0,0.00022739,2]
[378141455,1754745055150,-322.3139192,0.00022739,2]
[378141456,1754745055160,-473.244843,0.00022739,2]
[378141457,1754745055170,-460.0,0.00022739,2]
[378141458,1754745055181,-867.17,0.00022739,2]
[378141459,1754745055191,-460.0,0.00022739,2]
[378141460,1754745055201,-637.96,0.00022739,2]
[378141461,1754745055212,-460.0,0.00022739,2]
[378141462,1754745055222,-460.0,0.00022739,2]
[378141463,1754745055232,-460.0,0.00022739,2]
[378141464,1754745055243,-460.0,0.00022739,2]
[378141465,1754745055252,-501.07347936,0.00022739,2]
[378141466,1754745055262,-535.02,0.00022739,2]
[378141467,1754745055272,-473.23326017,0.00022739,2]
[378141468,1754745055283,-460.0,0.00022739,2]
[378141469,1754745055292,-460.0,0.00022739,2]
[378141470,1754745055309,-460.0,0.00022739,2]
[378141471,1754745055319,-460.0,0.00022739,2]
[378141472,1754745055330,-460.0,0.00022739,2]
[378141473,1754745055340,-460.0,0.00022739,2]
[378141474,1754745055351,-744.36,0.00022739,2]
[378141475,1754745055361,-460.0,0.00022739,2]
[378141476,1754745055371,-1487.63,0.00022739,2]
[378141477,1754745055467,-460.0,0.00022739,2]
[378141478,1754745055487,-460.0,0.00022739,2]
[378141479,1754745055497,-460.0,0.00022739,2]
[378141480,1754745055507,-460.0,0.00022739,2]
[378141481,1754745055518,-1161.91,0.00022739,2]
[378141482,1754745055528,-151.66253,0.00022739,7]
[378141483,1754745055538,-467.17,0.00022739,2]
[378141484,1754745055553,-460.0,0.00022739,2]
[378141485,1754745055563,-466.74240659,0.00022739,2]
[378141486,1754745055573,-1392.39,0.00022739,2]
[378141487,1754745055583,-151.66253,0.00022739,7]
[378141488,1754745055593,-460.0,0.00022739,2]
[378141489,1754745055602,-460.0,0.00022739,2]
[378141490,1754745055612,-460.0,0.00022739,2]
[378141491,1754745055621,-505.08,0.00022739,2]
[378141492,1754745055631,-2505.69,0.00022739,2]
[378141493,1754745055640,-460.0,0.00022739,2]
[378141494,1754745055650,-460.0,0.00022739,2]
[378141495,1754745055660,-460.0,0.00022739,2]
[378141496,1754745055670,-463.56752237,0.00022739,2]
[378141497,1754745055679,-460.0,0.00022739,2]
[378141498,1754745055689,-460.0,0.00022739,2]
[378141499,1754745055698,-288.2804357,0.00022739,2]
[378141500,1754745055708,-1216.33,0.00022739,2]
[378141501,1754745055717,-460.0,0.00022739,2]
[378141502,1754745055726,-460.0,0.00022739,2]
[378141503,1754745055736,-460.0,0.00022739,2]
[378141504,1754745055746,-460.0,0.00022739,2]
[378141505,1754745055756,-460.0,0.00022739,2]
[378141506,1754745055766,-905.89,0.00022739,2]
[378141507,1754745055776,-460.0,0.00022739,2]
[378141508,1754745055786,-460.0,0.00022739,2]
[378141509,1754745055802,-460.0,0.00022739,2]
[378141510,1754745055812,-501.01,0.00022739,2]
[378141511,1754745055822,-460.0,0.00022739,2]
[378141512,1754745055832,-429.01,0.00022739,2]
[378141513,1754745055842,-1008.18444506,0.00022768,2]
[378141514,1754745055851,-500.0,0.00022768,2]
[378141515,1754745055861,-151.0,0.000229,7]
[378141516,1754745055873,-2044.76129939,0.00022954,2]
[378141517,1754745055883,-775.98,0.00022977,3]
[378141518,1754745055894,-387.98,0.00022977,3]
[378141519,1754745055903,-160.0,0.00023,2]
[378141520,1754745055912,-216.61183532,0.00023,3]
[378141521,1754745055922,-312.16666667,0.00023,3]
[378141522,1754745055932,-231.92402426,0.00023,3]
[378141523,1754745055942,-527.77735381,0.00023,3]
[378141524,1754745055951,-160.0,0.00023,3]
[378141525,1754745055961,-842.95011917,0.00023,3]
[378141526,1754745055971,-460.0,0.00023013,2]
[378141527,1754745055980,-460.0,0.00023013,2]
[378141528,1754745055990,-332.80172595,0.00023013,2]
[378141529,1754745055999,-460.0,0.00023013,2]
[378141530,1754745056008,-460.0,0.00023013,2]
[378141531,1754745056018,-460.0,0.00023013,2]
[378141532,1754745056027,-464.67179982,0.00023013,2]
[378141533,1754745056037,-400.06360529,0.00023013,2]
[378141534,1754745056051,-440.85262255,0.00023013,2]
[378141535,1754745056061,-460.0,0.00023013,2]
[378141536,1754745056070,-460.0,0.00023013,2]
[378141537,1754745056080,-460.0,0.00023013,2]
[378141538,1754745056089,-460.0,0.00023013,2]
[378141539,1754745056098,-460.0,0.00023013,2]
[378141540,1754745056107,-460.0,0.00023013,2]
[378141541,1754745056117,-460.0,0.00023013,2]
[378141542,1754745056126,-460.0,0.00023013,2]
[378141543,1754745056136,-460.0,0.00023013,2]
[378141544,1754745056146,-460.0,0.00023013,2]
[378141545,1754745056155,-460.0,0.00023013,2]
[378141546,1754745056165,-460.0,0.00023013,2]
[378141547,1754745056175,-332.9916298,0.00023013,2]
[378141548,1754745056185,-616.05,0.00023013,2]
[378141549,1754745056195,-460.0,0.00023013,2]
[378141550,1754745056204,-460.0,0.00023013,2]
[378141551,1754745056214,-460.0,0.00023013,2]
[378141552,1754745056224,-164.63,0.00023013,2]
[378141553,1754745056234,-460.0,0.00023013,2]
[378141554,1754745056243,-460.0,0.00023013,2]
[378141555,1754745056253,-460.0,0.00023013,2]
[378141556,1754745056263,-460.0,0.00023013,2]
[378141557,1754745056273,-464.2,0.00023013,2]
[378141558,1754745056282,-460.0,0.00023013,2]
[378141559,1754745056292,-460.0,0.00023013,2]
[378141560,1754745056305,-460.0,0.00023013,2]
[378141561,1754745056314,-460.0,0.00023013,2]
[378141562,1754745056324,-466.66036735,0.00023013,2]
[378141563,1754745056333,-460.0,0.00023013,2]
[378141564,1754745056342,-460.0,0.00023013,2]
[378141565,1754745056352,-460.0,0.00023013,2]
[378141566,1754745056361,-460.0,0.00023013,2]
[378141567,1754745056370,-460.0,0.00023013,2]
[378141568,1754745056380,-460.0,0.00023013,2]
[378141569,1754745056389,-467.93147939,0.00023013,2]
[378141570,1754745056399,-460.0,0.00023013,2]
[378141571,1754745056409,-460.0,0.00023013,2]
[378141572,1754745056418,-460.0,0.00023013,2]
[378141573,1754745056428,-460.0,0.00023013,2]
[378141574,1754745056437,-467.87400313,0.00023013,2]
[378141575,1754745056447,-460.0,0.00023013,2]
[378141576,1754745056456,-251.31249488,0.00023013,2]
[378141577,1754745056466,-509.89,0.00023013,2]
[378141578,1754745056475,-460.0,0.00023013,2]
[378141579,1754745056484,-460.0,0.00023013,2]
[378141580,1754745056495,-460.0,0.00023013,2]
[378141581,1754745056504,-460.0,0.00023013,2]
[378141582,1754745056514,-460.0,0.00023013,2]
[378141583,1754745056523,-315.56433102,0.00023013,2]
[378141584,1754745056533,-460.0,0.00023013,2]
[378141585,1754745056542,-460.0,0.00023013,2]
[378141586,1754745056555,-177.79741401,0.00023013,2]
[378141587,1754745056566,-551.99432026,0.00023013,2]
[378141588,1754745056576,-460.0,0.00023013,2]
[378141589,1754745056586,-460.0,0.00023013,2]
[378141590,1754745056595,-460.0,0.00023013,2]
[378141591,1754745056605,-464.07737173,0.00023013,2]
[378141592,1754745056616,-460.0,0.00023013,2]
[378141593,1754745056626,-460.0,0.00023013,2]
[378141594,1754745056635,-460.0,0.00023013,2]
[378141595,1754745056645,-460.0,0.00023013,2]
[378141596,1754745056655,-460.0,0.00023013,2]
[378141597,1754745056664,-460.0,0.00023013,2]
[378141598,1754745056674,-513.74,0.00023013,2]
[378141599,1754745056684,-460.0,0.00023013,2]
[378141600,1754745056694,-460.0,0.00023013,2]
[378141601,1754745056703,-460.0,0.00023013,2]
[378141602,1754745056713,-460.0,0.00023013,2]
[378141603,1754745056722,-460.0,0.00023013,2]
[378141604,1754745056732,-460.0,0.00023013,2]
[378141605,1754745056741,-460.0,0.00023013,2]
[378141606,1754745056751,-464.80080992,0.00023013,2]
[378141607,1754745056760,-460.0,0.00023013,2]
[378141608,1754745056770,-460.0,0.00023013,2]
[378141609,1754745056779,-460.0,0.00023013,2]
[378141610,1754745056790,-460.0,0.00023013,2]
[378141611,1754745056803,-460.0,0.00023013,2]
[378141612,1754745056813,-314.33880988,0.00023013,2]
[378141613,1754745056823,-464.12131073,0.00023013,2]
[378141614,1754745056833,-466.73462039,0.00023013,2]
[378141615,1754745056842,-460.0,0.00023013,2]
[378141616,1754745056851,-504.87696158,0.00023013,2]
[378141617,1754745056861,-460.0,0.00023013,2]
[378141618,1754745056872,-460.0,0.00023013,2]
[378141619,1754745056882,-242.9527781,0.00023013,2]
[378141620,1754745056891,-460.0,0.00023013,2]
[378141621,1754745056901,-460.0,0.00023013,2]
[378141622,1754745056911,-460.0,0.00023013,2]
[378141623,1754745056921,-460.0,0.00023013,2]
[378141624,1754745056930,-462.56990268,0.00023013,2]
[378141625,1754745056940,-460.0,0.00023013,2]
[378141626,1754745056949,-460.0,0.00023013,2]
[378141627,1754745056959,-638.04,0.00023013,2]
[378141628,1754745056968,-460.0,0.00023013,2]
[378141629,1754745056978,-460.0,0.00023013,2]
[378141630,1754745056987,-214.79111598,0.00023013,2]
[378141631,1754745056996,-460.0,0.00023013,2]
[378141632,1754745057006,-460.0,0.00023013,2]
[378141633,1754745057016,-460.0,0.00023013,2]
[378141634,1754745057026,-460.0,0.00023013,2]
[378141635,1754745057112,-460.0,0.00023013,2]
[378141636,1754745057129,-460.0,0.00023013,2]
[378141637,1754745057138,-460.0,0.00023013,2]
[378141638,1754745057148,-151.0,0.00023013,7]
[378141639,1754745057157,-460.0,0.00023013,2]
[378141640,1754745057165,-460.0,0.00023013,2]
[378141641,1754745057174,-460.0,0.00023013,2]
[378141642,1754745057184,-460.0,0.00023013,2]
[378141643,1754745057193,-808.51,0.00023013,2]
[378141644,1754745057202,-477.21,0.00023013,2]
[378141645,1754745057211,-151.0,0.00023013,7]
[378141646,1754745057221,-151.0,0.00023013,7]
[378141647,1754745057231,-460.0,0.00023013,2]
[378141648,1754745057240,-460.0,0.00023013,2]
[378141649,1754745057249,-460.0,0.00023013,2]
[378141650,1754745057260,-405.49522147,0.00023013,2]
[378141651,1754745057269,-1681.48,0.00023013,2]
[378141652,1754745057278,-460.0,0.00023013,2]
[378141653,1754745057287,-460.0,0.00023013,2]
[378141654,1754745057297,-1027.3,0.00023013,2]
[378141655,1754745057306,-460.0,0.00023013,2]
[378141656,1754745057316,-795.13,0.00023013,2]
[378141657,1754745057325,-460.0,0.00023013,2]
[378141658,1754745057335,-429.42875718,0.00023013,2]
[378141659,1754745057344,-490.91,0.00023013,2]
[378141660,1754745057354,-638.22,0.00023013,2]
[378141661,1754745057363,-460.0,0.00023013,2]
[378141662,1754745057372,-460.0,0.00023013,2]
[378141663,1754745057382,-875.01,0.00023013,2]
[378141664,1754745057391,-460.0,0.00023013,2]
[378141665,1754745057400,-460.0,0.00023013,2]
[378141666,1754745057409,-460.0,0.00023013,2]
[378141667,1754745057419,-460.0,0.00023013,2]
[378141668,1754745057428,-488.50395581,0.00023013,2]
[378141669,1754745057438,-460.0,0.00023013,2]
[378141670,1754745057447,-460.0,0.00023013,2]
[378141671,1754745057456,-460.0,0.00023013,2]
[378141672,1754745057466,-460.0,0.00023013,2]
[378141673,1754745057475,-460.0,0.00023013,2]
[378141674,1754745057485,-460.0,0.00023013,2]
[378141675,1754745057495,-728.0,0.00023013,2]
[378141676,1754745057504,-460.0,0.00023013,2]
[378141677,1754745057513,-460.0,0.00023013,2]
[378141678,1754745057523,-480.91,0.00023013,2]
[378141679,1754745057532,-1302.92,0.00023013,2]
[378141680,1754745057542,-1545.8,0.00023013,2]
[378141681,1754745057554,-265.11973,0.00023013,7]
[378141682,1754745057563,-460.0,0.00023013,2]
[378141683,1754745057573,-460.0,0.00023013,2]
[378141684,1754745057583,-460.0,0.00023013,2]
[378141685,1754745057592,-495.1,0.00023013,2]
[378141686,1754745057602,-265.11973,0.00023013,7]
[378141687,1754745057612,-525.63,0.00023013,2]
[378141688,1754745057621,-526.31,0.00023013,2]
[378141689,1754745057632,-1355.34,0.00023013,2]
[378141690,1754745057643,-460.0,0.00023013,2]
[378141691,1754745057653,-923.81,0.00023013,2]
[378141692,1754745057662,-4472.04,0.00023013,2]
[378141693,1754745057672,-2093.72,0.00023013,2]
[378141694,1754745057681,-460.0,0.00023013,2]
[378141695,1754745057692,-161.776111,0.00023013,7]
[378141696,1754745057702,-460.0,0.00023013,2]
[378141697,1754745057711,-161.776111,0.00023013,7]
[378141698,1754745057722,-460.0,0.00023013,2]
[378141699,1754745057732,-462.12,0.00023013,2]
[378141700,1754745057742,-460.0,0.00023013,2]
[378141701,1754745057752,-460.0,0.00023013,2]
[378141702,1754745057762,-867.17,0.00023013,2]
[378141703,1754745057772,-460.0,0.00023013,2]
[378141704,1754745057783,-637.96,0.00023013,2]
[378141705,1754745057794,-460.0,0.00023013,2]
[378141706,1754745057804,-460.0,0.00023013,2]
[378141707,1754745057814,-460.0,0.00023013,2]
[378141708,1754745057824,-460.0,0.00023013,2]
[378141709,1754745057833,-535.02,0.00023013,2]
[378141710,1754745057842,-460.0,0.00023013,2]
[378141711,1754745057852,-460.0,0.00023013,2]
[378141712,1754745057861,-460.0,0.00023013,2]
[378141713,1754745057873,-151.0,0.00023013,7]
[378141714,1754745057883,-460.0,0.00023013,2]
[378141715,1754745057892,-460.0,0.00023013,2]
[378141716,1754745057901,-460.0,0.00023013,2]
[378141717,1754745057911,-744.36,0.00023013,2]
[378141718,1754745057921,-460.0,0.00023013,2]
[378141719,1754745057930,-1487.63,0.00023013,2]
[378141720,1754745057940,-460.0,0.00023013,2]
[378141721,1754745057951,-460.0,0.00023013,2]
[378141722,1754745057961,-460.0,0.00023013,2]
[378141723,1754745057970,-460.0,0.00023013,2]
[378141724,1754745057979,-1161.91,0.00023013,2]
[378141725,1754745057989,-467.17,0.00023013,2]
[378141726,1754745057999,-460.0,0.00023013,2]
[378141727,1754745058008,-1392.39,0.00023013,2]
[378141728,1754745058018,-460.0,0.00023013,2]
[378141729,1754745058027,-460.0,0.00023013,2]
[378141730,1754745058037,-460.0,0.00023013,2]
[378141731,1754745058047,-505.08,0.00023013,2]
[378141732,1754745058057,-2505.69,0.00023013,2]
[378141733,1754745058067,-460.0,0.00023013,2]
[378141734,1754745058076,-460.0,0.00023013,2]
[378141735,1754745058085,-460.0,0.00023013,2]
[378141736,1754745058096,-1216.33,0.00023013,2]
[378141737,1754745058106,-460.0,0.00023013,2]
[378141738,1754745058116,-460.0,0.00023013,2]
[378141739,1754745058125,-460.0,0.00023013,2]
[378141740,1754745058135,-460.0,0.00023013,2]
[378141741,1754745058145,-460.0,0.00023013,2]
[378141742,1754745058154,-905.89,0.00023013,2]
[378141743,1754745058163,-460.0,0.00023013,2]
[378141744,1754745058173,-466.89859832,0.00023013,2]
[378141745,1754745058183,-1112.72520775,0.00023037,2]
[378141746,1754745058194,-500.0,0.00023068,2]
[378141747,1754745058203,-151.0,0.00023174,2]
[378141748,1754745058213,-151.0,0.00023174,2]
[378141749,1754745058223,-151.0,0.00023174,2]
[378141750,1754745058232,-151.0,0.00023174,2]
[378141751,1754745058242,-151.0,0.00023174,2]
[378141752,1754745058251,-151.0,0.00023174,2]
[378141753,1754745058261,-151.0,0.00023174,2]
[378141754,1754745058271,-151.0,0.00023174,2]
[378141755,1754745058280,-151.0,0.00023174,2]
[378141756,1754745058289,-151.0,0.00023174,2]
[378141757,1754745058301,-151.0,0.00023174,2]
[378141758,1754745058310,-151.0,0.00023174,2]
[378141759,1754745058320,-151.0,0.00023174,2]
[378141760,1754745058329,-500.0,0.00023174,2]
[378141761,1754745058338,-151.15347236,0.00023174,2]
[378141762,1754745058348,-500.0,0.00023174,2]
[378141763,1754745058358,-151.0,0.00023174,2]
[378141764,1754745058367,-500.0,0.00023174,2]
[378141765,1754745058377,-151.0,0.00023174,2]
[378141766,1754745058386,-500.0,0.00023174,2]
[378141767,1754745058395,-151.0,0.00023174,2]
[378141768,1754745058405,-151.0,0.00023174,2]
[378141769,1754745058414,-151.0,0.00023174,2]
[378141770,1754745058423,-500.0,0.00023174,2]
[378141771,1754745058432,-283.13844623,0.00023174,2]
[378141772,1754745058442,-500.0,0.00023174,2]
[378141773,1754745058451,-500.0,0.00023174,2]
[378141774,1754745058461,-500.0,0.00023174,2]
[378141775,1754745058470,-500.0,0.00023174,2]
[378141776,1754745058480,-500.0,0.00023174,2]
[378141777,1754745058489,-500.0,0.00023174,2]
[378141778,1754745058498,-500.0,0.00023174,2]
[378141779,1754745058508,-151.0,0.00023174,2]
[378141780,1754745058517,-151.0,0.00023174,2]
[378141781,1754745058609,-500.0,0.00023174,2]
[378141782,1754745058619,-151.0,0.00023174,2]
[378141783,1754745058629,-151.0,0.00023174,2]
[378141784,1754745058639,-151.0,0.00023174,2]
[378141785,1754745058648,-151.0,0.00023174,2]
[378141786,1754745058659,-250.0,0.00023174,2]
[378141787,1754745058875,-151.0,0.00023174,2]
[378141788,1754745058886,-250.0,0.00023174,2]
[378141789,1754745058896,-151.0,0.00023174,2]
[378141790,1754745058906,-250.0,0.00023174,2]
[378141791,1754745058916,-151.0,0.00023174,2]
[378141792,1754745058925,-250.0,0.00023174,2]
[378141793,1754745058935,-151.0,0.00023174,2]
[378141794,1754745058945,-250.0,0.00023174,2]
[378141795,1754745058954,-151.0,0.00023174,2]
[378141796,1754745058963,-250.0,0.00023174,2]